Cogmind - Beta 13 @@@ ROGUE MODE // 2024.04.29 @ 22:23:35 Player: Some Pennies Result: Destroyed by 4J-9AO(R) with Subdweller Shrapnel Launcher Performance ------------- Evolutions (0) 0 Regions Visited (2) 400 Robots Destroyed (41) 205 Value Destroyed (833) 833 Prototype IDs (4) 80 Alien Tech Used (0) 0 Bonus (0) 0 TOTAL SCORE: 1518 Bonus ------- None Cogmind --------- Core Integrity 0/250 Matter 140/300 Energy 248/250 System Corruption 0% Temperature Cool (6) Movement Core (550) Ox10 Location -10/Subcaves Parts ------- > --- POWER (1) -------- Ion Engine > --- PROPULSION (2) --- (None) > --- UTILITY (2) ------ Large Storage Unit Structural Scanner > --- WEAPON (2) ------- Light Cannon Grenade Launcher > --- INVENTORY (15) --- Ion Engine Ion Engine Improved Heat Sink Signal Interpreter Improved Terrain Scanner Seismic Detector ECM Suite Hacking Suite Assault Rifle Battle Rifle Peak State ------------ > --- POWER ------------ Ion Engine > --- PROPULSION ------- Light Treads Light Treads > --- UTILITY ---------- Improved Heat Sink Small Storage Unit > --- WEAPON ----------- Assault Rifle Assault Rifle > --- INVENTORY -------- Ion Engine Ion Engine Light Treads Light Treads Signal Interpreter Improved Terrain Scanner Grenade Launcher Mining Laser [Rating: 10] Favorites ----------- Power Ion Engine Engine Ion Engine Propulsion Light Treads Treads Light Treads Utility Structural Scanner Device Structural Scanner Storage Large Storage Unit Weapon Assault Rifle Energy Gun Small Laser Energy Cannon Beam Cannon Ballistic Gun Assault Rifle Ballistic Cannon Light Cannon Launcher Grenade Launcher Special Weapon Mining Laser Build | -11 -10 -10 ------- Run | Yrd Mat Sub Slots Evolved . | . . . Power . | . . . Propulsion . | . . . Utility . | . . . Weapon . | . . . Parts Attached 31 | 7 17 7 Power 2 | 1 1 . Engine 2 | 1 1 . Core . | . . . Reactor . | . . . Propulsion 9 | 2 6 1 Treads 9 | 2 6 1 Leg . | . . . Wheel . | . . . Hover . | . . . Flight . | . . . Utility 7 | 2 5 . Device 5 | 2 3 . Storage 2 | . 2 . Processor . | . . . Hackware . | . . . Protection . | . . . Artifact . | . . . Weapon 13 | 2 5 6 Energy Gun 1 | . 1 . Energy Cannon 2 | . 1 1 Ballistic Gun 3 | 2 1 . Ballistic Cannon 2 | . . 2 Launcher 4 | . 1 3 Special Weapon 1 | . 1 . Impact Weapon . | . . . Slashing Weapon . | . . . Piercing Weapon . | . . . Special Melee Weapon . | . . . Unidentified Prototypes . | . . . Parts Lost 7 | . 3 4 Power . | . . . Propulsion 3 | . . 3 Utility 1 | . 1 . Weapon 3 | . 2 1 Highest Loss Streak 3 | . 2 3 To Critical Strikes . | . . . Average Slot Usage (%) 99 | . 99 99 Engine 14 | . 14 14 Treads 27 | . 27 27 Device 15 | . 16 14 Storage 12 | . 11 14 Energy Cannon 7 | . 6 8 Ballistic Gun 16 | . 20 6 Ballistic Cannon 1 | . . 5 Launcher 2 | . . 8 Naked Turns . | . . . Heaviest Build 32 | 11 31 32 Greatest Support 40 | 40 40 40 Greatest Overweight (x) 1 | . . 1 Average Overweight (x) . | . . . Largest Inventory Capacity 15 | 5 15 15 Average Capacity 10 | 5 9 15 Most Carried 11 | 5 11 11 Average Carried 8 | 3 8 10 Final Capacity 15 | 5 15 15 Final Carried 11 | 5 11 10 Class Distribution -------------------- 98% | Mutant Dominant Class ---------------- Mutant | -10/Materials Mutant | -10/Subcaves Resources | -11 -10 -10 ----------- Run | Yrd Mat Sub Matter Collected 1081 | 348 559 174 Remotely . | . . . Salvage Created 1221 | 265 801 155 Parts 81 | 17 57 7 Haulers Intercepted 2 | . 2 . Recyclers Shooed 1 | . 1 . Parts Field Recycled . | . . . Retrieved Matter . | . . . Parts Self-Destructed . | . . . Prevented . | . . . Kills | -11 -10 -10 ------- Run | Yrd Mat Sub Combat Hostiles Destroyed 20 | . 14 6 Guns 15 | . 13 2 Cannons 3 | . . 3 AOE 2 | . 1 1 Classes Destroyed 10 | 2 7 1 Worker 2 | . 2 . Builder 3 | . 3 . Tunneler 8 | 8 . . Hauler 2 | . 2 . Recycler 2 | 1 1 . Operator 1 | . 1 . Watcher 3 | . 3 . Swarmer 3 | . 3 . Grunt 11 | . 11 . Subdweller 6 | . . 6 Best Kill Streak 5 | 4 5 2 Combat Bots Only 3 | . 3 2 Max Kills in Single Turn 1 | 1 1 1 Gunslinging . | . . . Exploded 1 | . 1 1 Melee . | . . . Uniques/NPCs Destroyed . | . . . Combat | -11 -10 -10 -------- Run | Yrd Mat Sub Hostile Shots Fired 138 | . 93 45 Missed 43 | . 29 14 Damage Taken 1563 | . 768 795 Core 250 | . 132 118 Absorbed by Shields . | . . . Regen/Repaired (Parts) 42 | . 42 . Core Remaining (%) 100 | 100 . . Volleys Fired 141 | 17 86 38 Largest 2 | 2 2 2 Hottest 120 | 40 120 95 Shots Fired 263 | 34 159 70 Gun 182 | 34 138 10 Cannon 64 | . 17 47 Launcher 14 | . 1 13 Special 3 | . 3 . Kinetic 201 | 34 134 33 Thermal 48 | . 24 24 Explosive 14 | . 1 13 Electromagnetic . | . . . Robot Hit Streak 13 | 6 12 13 Robot Miss Streak 3 | 2 3 2 Penetration Max . | . . . Secondary Targets 1 | . 1 . Max Gunslinging Chain 1 | . 1 . Shots Hit Robots 162 | 20 96 46 Core Hits 60 | 9 37 14 Critical Kills . | . . . Critical Parts Destroyed . | . . . Critical Strikes . | . . . Melee Attacks . | . . . Impact . | . . . Slashing . | . . . Piercing . | . . . Sneak Attacks . | . . . Combat Hostiles . | . . . Follow-up Attacks . | . . . Damage Inflicted 2685 | 250 1401 1034 Guns 1501 | 250 1188 63 Cannons 635 | . 144 491 Explosions 523 | . 43 480 Melee . | . . . Ramming . | . . . Kinetic 1721 | 250 1162 309 Thermal 441 | . 196 245 Explosive 480 | . . 480 Electromagnetic 43 | . 43 . Impact . | . . . Slashing . | . . . Piercing . | . . . Highest Corruption . | . . . Average Corruption . | . . . Corruption Purged . | . . . Corruption Blocked . | . . . Overload Shots . | . . . Overflow Damage 2 | . 2 . Projectiles . | . . . Explosions 2 | . 2 . Melee . | . . . Knockbacks 4 | . . 4 Impact . | . . . Kinetic 4 | . . 4 Secondary . | . . . Self-Inflicted Damage 47 | . 47 . Shots 2 | . 2 . Rammed . | . . . Targets Rammed . | . . . Kicked . | . . . Crushed . | . . . Highest Temperature 54 | . 54 . Average Temperature 18 | . 18 . Received Heat Transfer 384 | . 354 30 Siege Activations . | . . . Robots Corrupted . | . . . Combat Hostiles . | . . . Parts Fried . | . . . Impact Corruptions . | . . . Robots Melted . | . . . Combat Hostiles . | . . . Parts Melted . | . . . Heat Transferred 914 | . 396 518 Parts Sabotaged . | . . . Parts Stolen . | . . . Parts Stripped . | . . . Power Chain Reactions . | . . . Alert | -11 -10 -10 ------- Run | Yrd Mat Sub Peak Influence 169 | 45 169 . Initial 29 | . 29 . Average 58 | 17 63 . Maximum Alert Level . | . . . Low Security (%) 100 | 100 100 . Level 1 . | . . . Level 2 . | . . . Level 3 . | . . . Level 4 . | . . . Level 5 . | . . . High Security . | . . . Max Security . | . . . Squads Dispatched 2 | . 2 . Investigation 2 | . 2 . Extermination . | . . . Reinforcement . | . . . Assault . | . . . Garrison . | . . . Intercept . | . . . Searches Triggered . | . . . Construction Impeded . | . . . Haulers Reinforced . | . . . Active Scanning Responses . | . . . Cargo Convoy Interrupts . | . . . Stealth | -11 -10 -10 --------- Run | Yrd Mat Sub Distress Signals 2 | . 2 . Communications Jammed . | . . . Distress Signals . | . . . Times Spotted 34 | . 25 9 Peak Tracking Total 4 | . 4 3 Tactical Retreats 1 | . 1 . Traps | -11 -10 -10 ------- Run | Yrd Mat Sub Traps Triggered 3 | . 3 . Indirectly 1 | . 1 . Trap Hack Attempts . | . . . Triggered . | . . . Disarmed . | . . . Reprogrammed . | . . . Reused . | . . . Traps Extracted . | . . . Installed . | . . . Triggered . | . . . Machines | -11 -10 -10 ---------- Run | Yrd Mat Sub Machines Disabled 1 | . 1 . Max in Single Turn 1 | . 1 . Machines Repaired . | . . . Machines Dismantled . | . . . Machines Sabotaged . | . . . Overloaded Fab Kills . | . . . Hacking | -11 -10 -10 --------- Run | Yrd Mat Sub Machines Accessed 11 | . 10 1 Terminals 8 | . 8 . Fabricators . | . . . Repair Stations 1 | . 1 . Recycling Units 1 | . 1 . Scanalyzers . | . . . Garrison Access . | . . . Total Hacks 29 | . 27 2 Successful 14 | . 12 2 Failed 15 | . 15 . Catastrophic . | . . . Database Lockouts . | . . . Manual 11 | . 11 . Terminals 24 | . 24 . Fabricators . | . . . Repair Stations 2 | . 2 . Recycling Units 1 | . 1 . Scanalyzers . | . . . Garrison Access . | . . . Terminal Hacks 12 | . 10 2 Record 2 | . . 2 Robot Analysis 3 | . 3 . Prototype ID Bank 3 | . 3 . Locate Traps 2 | . 2 . Zone Layout 2 | . 2 . Fabricator Hacks . | . . . Repair Station Hacks 2 | . 2 . Scan Component 1 | . 1 . Repair 1 | . 1 . Recycling Unit Hacks . | . . . Scanalyzer . | . . . Garrison Access Hacks . | . . . Unauthorized Hacks . | . . . Terminals . | . . . Fabricators . | . . . Repair Stations . | . . . Recycling Units . | . . . Scanalyzers . | . . . Garrison Access . | . . . Data Cores Recovered 1 | . 1 . Used . | . . . Hacking Detections 9 | . 9 . Full Trace Events . | . . . Feedback Events . | . . . Feedback Blocked . | . . . Robot Schematics Acquired . | . . . Robots Built . | . . . Authchips . | . . . Time . | . . . Total Robot Build Rating . | . . . Part Schematics Acquired . | . . . Parts Built . | . . . Authchips . | . . . Time . | . . . Total Part Build Rating . | . . . Parts Repaired 1 | . 1 . Time 26 | . 26 . Parts Recycled . | . . . Recycled Matter . | . . . Retrieved Matter . | . . . Retrieved Components . | . . . Parts Scanalyzed . | . . . Part Schematics Acquired . | . . . Parts Damaged . | . . . Bothacking | -11 -10 -10 ------------ Run | Yrd Mat Sub Used RIF Installer . | . . . Robots Hacked . | . . . Non-combat . | . . . Combat . | . . . Robot Hacks Applied . | . . . Relay Couplers Released . | . . . Fabnet Peak Effective % . | . . . Robots Rewired . | . . . Allies Hacked . | . . . Hacks Repelled . | . . . Allies | -11 -10 -10 -------- Run | Yrd Mat Sub Total Allies . | . . . Largest Group . | . . . Highest-Rated Group . | . . . Highest-Rated Ally . | . . . Total Orders . | . . . Ally Attacks . | . . . Total Damage . | . . . Kills . | . . . Allies Corrupted . | . . . Allies Melted . | . . . Intel | -11 -10 -10 ------- Run | Yrd Mat Sub Robot Analysis Total 3 | . 3 . Derelict Logs Recovered 1 | . . 1 Drone Launches . | . . . Drone Recoveries . | . . . Exploration | -11 -10 -10 ------------- Run | Yrd Mat Sub Turns Passed 4295 | 291 2803 1201 Spaces Moved 2318 | 140 1516 662 Core 1 | 1 . . Treads 2317 | 139 1516 662 Legs . | . . . Wheels . | . . . Hover . | . . . Flight . | . . . Fastest Speed 50 | 50 160 160 Average Speed 159 | 159 160 160 Slowest Speed 240 | 160 160 240 Overloaded Moves . | . . . Propulsion Burnouts . | . . . Robots Hopped . | . . . Cave-ins Triggered . | . . . Exploration Rate (%) 52 | 9 100 48 Regions Visited 2 Branch Regions 1 Pre-discovered Areas 1 | . . 1 Known Exits Taken . | . . . Unknown Exits Taken 2 | 1 1 . Scrap Searched . | . . . Spaces Dug 7 | . 7 . Terrain Destroyed 79 | . 8 71 Melee . | . . . Projectile 1 | . 1 . AOE 78 | . 7 71 Terrain Rammed . | . . . Walls Destroyed . | . . . Machines Disabled . | . . . Actions | -11 -10 -10 --------- Run | Yrd Mat Sub Total 2635 | 174 1728 733 Wait 104 | . 79 25 Move 2316 | 139 1515 662 Hop . | . . . Pick Up 31 | 11 19 1 Fast Attach 4 | 1 3 . Attach 11 | 6 3 2 Detach . | . . . Swap 16 | . 11 5 Drop 12 | . 12 . Fire 141 | 17 86 38 Melee . | . . . Ram . | . . . Kick . | . . . Crush . | . . . Escape Stasis . | . . . Rewire . | . . . Trap . | . . . Miscellaneous . | . . . Route ------- -11/Scrapyard -10/Materials (discovered 5 exits: [*Mat x3] / [*Min] / *Sub) -10/Subcaves (discovered 1 exit: [*Mat]) History --------- Turn | Location | Event 22 | -11/Scrapyard | Discovered new exit (range 15) 292 | -11/Scrapyard | Entered Materials 312 | -10/Materials | Build established: Mutant 443 | -10/Materials | Discovered new exit (range 13) 769 | -10/Materials | Discovered new exit (range 15) 866 | -10/Materials | Repaired Lgt. Treads 1151 | -10/Materials | Discovered new exit (range 12) 1591 | -10/Materials | Core integrity fell below 50% 1610 | -10/Materials | Discovered new exit (range 8) 3081 | -10/Materials | Discovered new exit (range 10) 3095 | -10/Materials | Entered Subcaves 3117 | -10/Subcaves | Learned location of Zion (-6) 3117 | -10/Subcaves | Met a Zionite searching for "candidates" 3204 | -10/Subcaves | Shifting Twisted Machinery released Sub. Beam Cannon 3534 | -10/Subcaves | Learned 4 Materials zone layouts 3698 | -10/Subcaves | Discovered new exit (range 7) 3743 | -10/Subcaves | Visited Clippyterm 4286 | -10/Subcaves | Core integrity fell below 20% 4293 | -10/Subcaves | Ambushed by Subdweller buried in earth 4294 | -10/Subcaves | Ambushed by Subdweller buried in earth 4296 | -10/Subcaves | Destroyed by 4J-9AO(R) with Subdweller Shrapnel Launcher Last Messages --------------- 03875_ J8-SC4(R) knocked back. 03881_ J8-SC4(R) destroyed. 03884_ The unstable cave ceiling collapses. 03891_ Acquired 15 matter. 03894_ Acquired 4 matter. 03896_ Acquired 3 matter. 04008_ T3-LFP(R) knocked back. 04014_ T3-LFP(R) destroyed. 04019_ Acquired 42 matter. 04022_ Acquired Battle Rifle. 04024_ The unstable cave ceiling collapses. 04024_ Acquired 5 matter. 04028_ The unstable cave ceiling collapses. 04282_ Lgt. Treads destroyed. 04284_ 4J-9AO(R) knocked back. 04285_ Beam Cannon destroyed. 04293_ GT-M74(R) destroyed. 04294_ G4-6RU(R): "ARGHSUB!" 04295_ FX-WGN(R): "GOODGOOD!" 04296_ Lgt. Treads destroyed. Map ----- +----------------------------------------------------+ | ????????????????????????????????????????########? | | ???????????????????????????########???########### | | ???????????????????????????#########??#### ### | | ???????????????????####????## ####?## ## | | ??????????????????########### ###### # | | ??????????????????### ######## ##### # | | ??????????????????## ### ### ## | | ????????????????????## ## ### | | ??????????????####??### ## ## | | ??????????????######?## ## ### | | ??????????????## ###### ###### | | ??????????????## ###### ### ###### | | ??????????????## ##### ########## | | ??????????????## ### #### ######### | | ??????????????### ##### ####### | | ??????????????##### ### ## ####### | | ???????????????##### ## ###? #### | | ?????????????????#### ## ## ### ## | | ?????????????????#### ### ## ### | | ????????????????### ## #### ### ### | | ?????????????###### ;; ###### #### #### | | ?????????????#####;; ######## ##### #### | | ?????????????## #;R ######### ### | | ?????????????## # #### ### | | ?????????????## ### ##? | | ?????????????## @ # # ## ##? | | ?????????????## & R ##########? | | ?????????????##### R %###########? | | ?????????????##### ####?????????? | | ???????????????## ; ## ####?????????? | | ???????????????##< #### #### ##???????????? | | ??????????????? < ### #######???????????? | | ??????????????? ????##### ????????????????? | | ?????????????? # ????##### ????????????????? | | ????????????# #< # ?????????? ???????????????? | | ????????????## ## ??????????? ??????????????? | | ???????????? # ??????????????? ?????????????? | | ??????????????? ##??????????????? ??????????????? | | ????????????????????????????????????????????????? | | ????????????????????????????????????????????????? | | ????????????????????????????????????????????????? | | ????????????????????????????????????????????????? | | ????????????????????????????????????????????????? | | ????????????????????????????????????????????????? | | ????????????????????????????????????????????????? | | ????????????????????????????????????????????????? | | ????????????????????????????????????????????????? | | ????????????????????????????????????????????????? | | ????????????????????????????????????????????????? | | ????????????????????????????????????????????????? | +----------------------------------------------------+ Best States ------------- Heat Dissipation 39 Energy Generation 10 Energy Capacity 250 Matter Stores 300 Matter Capacity 300 Sight Range 16 Terrain Scan Range 16 Terrain Scan Density 10 Evasion (%) 40 Recoil Reduction 2 Item Schematics ----------------- None Robot Schematics ------------------ None Fabricated ------------ Nothing Alien Tech Used ----------------- None Achievements -------------- None Challenges ------------ None Game ------ Seed MobileSeismicChronowheel Manual? 0 Play Time 00:28:46 Cumulative 30.5 hours Start 2024.04.29 @ 21:48:41 End 2024.04.29 @ 22:23:35 Sessions 1 Manual Loads 0 Difficulty Rogue Special Mode None Game No. 37 Rogue 32 Adventurer 5 Explorer 0 Win Type - Total 0 Types 0/0/0/0/0/0/0/0/0 Lore% 24 Gallery% 27 Achievement% 22 Wizard Run 0 Options --------- Layout 2 ASCII 0 Keyboard 0 Movement Mouse Keybinds 0 Fullscreen 2 Font 24/Smallcaps Map View 50x44 Zoom Use 0% Tactical HUD 1 Map Filters NONE Filters NONE Steam 1 RUN: 8fa860b7-d99f-402e-898f-1e64c3e6e89d